{"text_format":"1","workbook":"xlsx","n_sheets":4,"sheets":["1","2 Letter Front","3 Contract Details (new system)","4 Confirmation of Funding"],"not_rendered":{"charts":0,"images":1,"macros":1,"external_links":0,"defined_names":21,"comments":0,"pivot_tables":0},"unopened":[],"bounds":{"document_bytes":16777216,"sheet_cells":100000,"rows_first":2000,"rows_last":500,"rows_between":2000,"halvings":0,"cell_chars":16384,"cell_head_chars":4096},"cells_cut":0,"cells_raw":0,"read":"whole","date_system":"1900"}

{"sheet":"1","index":0,"n_rows":14,"n_cols":2,"rows_kept":14,"cut":false,"hidden":false,"merged":[[3,0,3,1],[6,0,6,1],[5,0,5,1],[1,0,1,1],[2,0,2,1],[8,0,8,1],[9,0,9,1],[7,0,7,1],[4,0,4,1],[10,0,10,1]]}
[null,"Human Resources Division                                                                                           Graduate Teaching Assistants and Guest Contract                                                                                        (1 August 2018 - 31 July 2019)"]
["This Excel workbook should be used to create new and additional contracts for new Graduate Teaching Assistants and Guest Teachers, using the 2018/19 payment system."]
["Creating the Contract Details:\nSelect tab 3, 'Contract Template'. \nComplete all the input boxes on the worksheet, using [TAB] to move between them. \nFollow the instructions which appear in message boxes as you [TAB] through. \nOnce you have entered all the required information, the appropriate rates of pay will be calculated automatically."]
["When requesting an hourly-paid contract you will need to provide information about the individual’s Right to Work.  \n\n1. Does the appointee have the right to work in the UK (y/n)?  \nYou will need to ask the appointee whether they have the right to work in the UK already.  UK and EEA nationals have the right to work in the UK without restriction.\n\n2.  If yes, what is their current immigration status?\nPlease select the relevant category from the drop down list.  This will help to flag up the individual’s immigration status to identify whether their current status will permit them to work in this role\n\n3. What is the expiry date of their visa (select n/a if not applicable)\nIf the individual needs a visa to work in the UK, ask them what the expiry date of their visa is and put that in the field.  The contract will be issued until this date and they will not be able to have an extension unless they have renewed their visa.  If the individual does not need a visa to work, or their visa has no expiry date, please put N/A in the field.\n"]
["Now select worksheet 3 'Confirmation of Funding'. The appropriate contract details will be copied into the form. Now [TAB] through to fill in the expected hours per week and the funding details - up to two budget codes can be input to allow for split-funded posts. "]
["Until completed, each mandatory field on Sheets 2 and 3 will appear as an orange shaded box. As you complete the required fields, these will change to white. Only when the contract is complete will the ERROR message disappear.  Please note that Human Resources are unable to accept incomplete contracts and will return incomplete contracts to departments immediately.\n\n(NB signed hard copies are no longer required.)"]
["Before completing Sheets 2 and 3, you may wish to use Sheet 4 'Hours calculator' to work out the average hours a week for a contract if you have a defined budget or a defined number of hours for a contract. You do not have to do this - and Human Resources do not need a print-out of this sheet."]
["Once you have finished, you can save the contract with any file name in any location.  Please make sure that you use the most up to date version of the template as available on the Human Resources website. "]
["Please email the completed contract and confirmation of funding form to hr.pay.hourly@lse.ac.uk. Please ensure that the email of the contract to Human Resources is copied to both the manager and the budget/grant holder."]
["If you have any problems with or questions about this template, please email hr.pay.hourly@lse.ac.uk."]
["Version History:\n"]
[1,"Academic Session, 2018-19"]
[1.1000000000000001,"Updated for August 2018 (Pay award), Pension wording update"]
[1.2,"Updated for Nov 2018 (Pay award)."]

{"sheet":"2 Letter Front","index":1,"n_rows":15,"n_cols":1,"rows_kept":15,"cut":false,"hidden":false,"merged":[[7,0,7,6],[10,0,10,6],[13,0,13,6],[1,5,1,6],[2,0,2,6],[3,0,3,6],[5,0,5,6],[6,0,6,6],[9,0,9,6],[11,0,11,16383],[8,0,8,6]]}
[]
[{"$f":"IF(ISBLANK('3 Contract Details (new system)'!B3),\"\",\"Dear \"&'3 Contract Details (new system)'!B3)","v":""}]
[{"$f":"IF(OR(ISBLANK('3 Contract Details (new system)'!B3),ISBLANK('3 Contract Details (new system)'!F15)),\"\",\"On behalf of the London School of Economics and Political Science, I am very pleased to offer you an appointment as a \"&'3 Contract Details (new system)'!F15&\". This contract is issued subject to the right to work clarifications expressed.\")","v":""}]
["On the next page, you will find more details regarding your contract of employment. Please read both this and the next pages thoroughly before proceeding to sign."]
["Right to Work"]
["This offer is made on the understanding that you have the right to work in the UK and your start date is subject to you being able to demonstrate proof of your right to work before you start work.\n\nYou are required to come to the HR Division in person and present original documentation confirming your right to work, in accordance with the current Home Office guidelines for acceptable right to work documents.  Please refer to Annex A for the full list of accepted documents.\n\nPlease come to the HR Division with your original documents as soon as possible after receiving this letter and no later than 9:30am on your start date.  No work of any kind should be undertaken prior to the completion of an approved Right to Work check, verified by the Human Resources Division. \n\nIf you have an application in progress with the Home Office, LSE is required to conduct further checks.  Please contact the HR Division immediately to discuss your situation so that appropriate checks can be made before you start work.  Please note that you will not be allowed to start work until these checks have been made and if necessary, your start date will be postponed until the checks are completed.  You are required to keep the HR Division informed of the progress of your application, and you are required to bring evidence of your new visa when you receive it.\n\nIn the event that you are unable to provide evidence of your right to work by 9:30am on your start date, or the documents that you have presented do not meet the current Home Office guidelines (see Annex B in this letter) you will not be allowed to start work.  Your start date will then be deferred until your right to work status is formally confirmed by the HR Division.  Your salary, continuous service and other such related benefits will start from your new start date.  Salary cannot be backdated.\n\nThe School reserves the right not to pay an individual for any work undertaken before a satisfactory right to work check is completed or in cases where the documents presented do not meet with current Home Office guidelines.\n"]
["Renewing your visa \nYou are required to demonstrate that you have the right to work for the duration of your contract.  If you have a visa with an expiry date, it is your responsibility to ensure that you have taken appropriate steps to renew your visa, or switch to another immigration category before your visa expires.  You will be required to present evidence to the HR Division of an application in progress so that further checks can be made before your visa expires.\n\nIf you are unable to provide evidence that you have submitted an application to renew your visa, or change to another visa category before your visa expires, your employment will be at risk and you will be required to stop work on the expiry date of your visa.  If you are required to stop work your salary, continuous service and other such related benefits will cease until you are able to provide evidence of your right to work status.  \n"]
["Pension"]
["You may apply to join one of the School's pension schemes (SAUL for staff in bands 1-5; USS for bands 6 and above), please contact the Pensions Team for further information HR.Pensions@LSE.ac.uk. The School must enrol staff that earn over £833 per month (2018/2019), are aged 22 or over and are under state pension age. The School will assess this criteria each month but, in order to smooth the automatic enrolment duty in respect of employees with rare spikes in earnings, automatic enrolment may be postponed up to three months from the first day of employment or the date at which an employee first becomes an ‘eligible jobholder’.  Employees who meet the qualifying criteria will receive e-mail confirmation of automatic enrolment.  Employees who do not meet the criteria can ask to join the scheme at any point.  \n\nExisting members of either SAUL or USS will be automatically placed into the appropriate scheme upon commencement of a new eligible post. If you decide not to join the pension scheme on your additional post, you can opt out by filling out the forms on the scheme website and returning them to the HR pension team, this must be done on or after your first day. You will be re-assessed broadly every three years from the date at which the School first had to follow the new pension laws, to determine whether you still qualify at that time.  This process is known as re-enrolment.\n\nPlease ensure you read the additional pensions document attached to your email from HR."]
["Next steps\nIf you wish to accept this offer please come to the HR Division as soon as possible and no later than the start date of your contract bringing with you your original Right to Work documents. In addition please sign and return one copy of this contract, together with (if relevant) the enclosed 'Bank/Building Society Details', 'Employee Details' and 'P45' forms. Please let us know if your details change.  If you are unable to take up this offer of engagement, please contact the manager/supervisor named above immediately.\n\n\n"]
["\nIf you wish to accept this offer please come to the HR Division as soon as possible and no later than the start date of your contract bringing with you your original Right to Work documents. In addition please sign and return one copy of this contract, together with (if relevant) the enclosed 'Bank/Building Society Details', 'Employee Details' and 'P45' forms. Please let us know if your details change.  If you are unable to take up this offer of engagement, please contact the manager/supervisor named above immediately.\n"]
["If you wish to accept this contract. Please indicate so by signing at the bottom of either page of your contract and returning it digitally to your contact in Human Resources."]
["Yours sincerely,"]
[]
["Human Resources"]

{"sheet":"3 Contract Details (new system)","index":2,"n_rows":233,"n_cols":20,"rows_kept":233,"cut":false,"hidden":false,"merged":[[18,5,18,12],[19,5,19,12],[20,5,20,12],[13,5,13,12],[14,5,14,12],[15,5,15,12],[16,5,16,12],[17,5,17,12],[7,5,10,12],[2,1,2,4],[2,6,2,12],[3,6,3,12],[4,6,4,12],[5,6,5,12],[5,1,5,4],[26,5,26,7],[27,5,27,7],[38,0,38,12],[40,0,40,12],[28,5,28,7],[37,0,37,12],[45,0,45,12],[59,1,60,6],[37,13,37,25],[21,5,21,12],[22,5,22,12],[42,0,42,12],[41,0,41,12],[53,0,53,12],[39,0,39,12],[33,1,33,2],[44,0,44,11],[43,0,43,11],[34,1,34,2],[35,1,35,2],[24,5,24,7],[25,5,25,7]]}
[null,null,null,"(Teacher contract 18/19 1.2 - Nov 18"]
[]
["To:",null,null,null,null,"Address:"]
[]
[]
["Date of birth:",null,null,null,null,"Email:"]
[]
["Dear Colleague,",null,null,null,null,{"$f":"IF(OR(ISERROR(F19),ISERROR(F20),ISERROR(F22),B3=\"\",G6=\"\",F14=\"\",F15=\"\",F17=\"\",F18=\"\",F19=\"\",F20=\"\",F21=\"\",F22=\"\", F23=\"\",F25=\"\",A31=\"\",B31=\"\",C31=\"\",D31=\"\"),\"ERROR: invalid contract. Please ensure all orange boxes are complete and the correct Excel add-ins are loaded so that formulae work correctly (see notes on Tab 1).\",\"\")","v":"ERROR: invalid contract. Please ensure all orange boxes are complete and the correct Excel add-ins are loaded so that formulae work correctly (see notes on Tab 1)."}]
[]
["TEACHER APPOINTMENT"]
[]
["I have pleasure in offering you an appointment, as follows:"]
[]
["Name of Department/Institute:"]
["Job Title:"]
["Departmental Contact"]
["LSE course on which the student is registered (if applicable):"]
["Terms:"]
["Teaching Start Date:",null,null,null,null,{"$f":"IF(F18=\"\",\"\",VLOOKUP(F$18,Terms_Table,2,FALSE))","v":""}]
["Teaching End Date:",null,null,null,null,{"$f":"IF(F18=\"\",\"\",VLOOKUP(F$18,Terms_Table,3,FALSE))","v":""}]
["Salary Band and Step:"]
[{"$f":"IF(F15<>\"Emeritus Teacher\",\"Contract End Date if fixed-term appointment:\",\"End date of this post-retirement contract:\")","v":"Contract End Date if fixed-term appointment:"},null,null,null,null,{"$f":"$F$20","v":""}]
["Reason for fixed-term appointment (if applicable):",null,null,null,null,{"$f":"IF(F15=\"Graduate Teaching Assistant\",\"GTA Scheme\",IF(F15=\"Emeritus Teacher\",\"Not applicable\",IF(AND(F15=\"Guest Teacher\",F21=\"Not applicable\"),\"Not applicable\",\"\")))","v":""}]
[]
["Does the appointee have the right to work in the UK?"]
[{"$f":"IF($F$25=\"Yes\",\"What is their current immigration status?\",\"\")","v":""}]
[{"$f":"IF($F$25=\"Yes\",\"What is the start date of their visa?\",\"\")","v":""}]
[{"$f":"IF($F$25=\"Yes\",\"What is the expiry date of their visa?\",\"\")","v":""}]
[{"$f":"IF(F26=\"Tier 4 (Student)\", \"What kind of student is the employee?\", \"\")","v":""}]
["Course Number & Title","Term","Weeks","Number of groups","Contact hours ","Preparation (hours)","Lecture and Meeting Attendance (hours)","Office Hours","Items to be marked","Items marked per hour","Marking (hours)","Unit (full=1.0; half=0.5)","Administration (hours)","Line Total"]
[null,null,null,null,{"$f":"C31*D31","v":0},{"$f":"C31*2","v":0},{"$f":"C31","v":0},{"$f":"ROUNDUP(D31/3,0)*C31","v":0},{"$f":"D31*15*4","v":0},3,{"$f":"I31/J31","v":0},1,{"$f":"D31*15*0.5*L31","v":0},{"$f":"E31+F31+G31+H31+K31+M31","v":0}]
[]
[]
["From","To",null,"Holiday Entitlement (hours)","Total Hours (inc holiday)","Hours per Week (inc holiday)","FTE (inc holiday)","Monthly Salary",null,null,"Total Pay",null,null,"Total hours (excl. holiday)",{"$f":"SUM(N31:N32)","v":0},"Salary","1st Month Frac","Mid-months","Last Month Frac"]
[{"$f":"IF($F$18=\"\",\"\",IF($F$18=\"Specified Dates - see below\",F19,VLOOKUP($F$18,Terms_Table,2,FALSE)))","v":""},{"$f":"IF($F$18=\"\",\"\",IF($F$18=\"Specified Dates - see below\",F20,VLOOKUP($F$18,Terms_Table,5,FALSE)))","v":""},null,{"$f":"O35","v":0},{"$f":"P36","v":0},{"$f":"IF(E35=0,\"\",ROUND(E35/(NETWORKDAYS(A35,B35)/5),2))","v":""},{"$f":"IF(E35=0,\"\",F35/35)","v":""},{"$f":"IF(E35=0,\"\",P35/12)","v":""},null,null,{"$f":"IF(E35=0,\"\",ROUND(Q35*H35,2)+ROUND(R35*H35,2)+ROUND(S35*H35,2))","v":""},null,null,"Holidays hours",{"$f":"O34*0.1864","v":0},{"$f":"ROUND((F35/35)*(VLOOKUP(F21,A76:C233,2,\"FALSE\")),2)","v":{"$error":"#VALUE!"}},{"$f":"(DAY(EOMONTH(A35,0))-DAY(A35)+1)/DAY(EOMONTH(A35,0))","v":{"$error":"#VALUE!"}},{"$f":"IF(YEAR(A35)=YEAR(B35),MONTH(B35)-MONTH(A35)-1,MONTH(B35)+12-MONTH(A35)-1)","v":{"$error":"#VALUE!"}},{"$f":"DAY(B35)/DAY(EOMONTH(B35,0))","v":{"$error":"#VALUE!"}}]
[null,null,null,null,null,null,null,null,null,null,null,null,null,null,"Total hours (incl. holiday)",{"$f":"SUM(O34:O35)","v":0},null,{"$f":"IF(A36=\"\",\"\",(DAY(EOMONTH(A36,0))-DAY(A36)+1)/DAY(EOMONTH(A36,0)))","v":""},{"$f":"IF(A36=\"\",\"\",IF(YEAR(A36)=YEAR(B36),MONTH(B36)-MONTH(A36)-1,MONTH(B36)+12-MONTH(A36)-1))","v":""},{"$f":"IF(A36=\"\",\"\",DAY(B36)/DAY(EOMONTH(B36,0)))","v":""}]
[]
[{"$f":"IF(F15=\"Graduate Teaching Assistant\",N38,\"\")","v":""},null,null,null,null,null,null,null,null,null,null,null,null,"This post is offered on a fixed-term basis as it is a career development post.  The purpose of such posts is to enable post holders to gain the experience necessary to move on to other positions. The post has a fixed term to allow it to become vacant for others to also gain such experience in the future."]
["Your place of work will be the Houghton Street site.  Your continuous service with the School began on [Human Resources to complete].  The other terms and conditions relating to this appointment are set out in the document enclosed."]
["Please note that the salary quoted on this contract reflects the 1 November 2018 payscales."]
[]
[]
[]
["This appointment is subject to the course and/or classes running as set out above.  Should the course and/or classes be cancelled or varied, the School reserves the right to withdraw or amend the contract without a notice payment being made."]
["Dependant on meeting statutory criteria, you may be automatically enrolled into one of the School's pensions schemes (SAUL for band 5 staff; USS for band 6 and above), please contact the Pensions Manager on x7093 if you have any pension queries. You are advised to read your Terms and Conditions carefully when considering your options. "]
["IMPORTANT: Tier 4 students can only work maximum of 20 hours per week during term time. This includes paid and unpaid work. If you are a Tier 4 student and you sign this contract you are also declaring that you will not work more than the restricted hours."]
["I confirm that I have permission from my research supervisor to undertake the teaching duties set out in this contract."]
["Yours sincerely,"]
[]
[]
[]
["Human Resources Division"]
[]
[{"$f":"IF(F15=\"Graduate Teaching Assistant\",A47,\"\")","v":""}]
["I accept the above offer of appointment on the terms set out."]
[]
[]
["Appointee's Signature …………………………………………………………………………",null,null,null,null,null,null,null,null,null,"Date ………………………………"]
[]
["FUNDING DETAILS",null,null,null,null,null,null,null,null,null,null,null,{"$f":"IF(K35<>\"\",CONCATENATE(\"MSLs: \",ROUND((K35+#REF!)*1.128/865,2)),\"\")","v":""}]
["(Tick one)"]
[]
[null,"Teaching Start","Teaching End","Contract End","Hours End 1",null,null,"MT"]
["Michaelmas Term 2018","2018-09-27","2018-12-14","2018-12-14","2018-12-14",null,null,"LT"]
["Lent Term 2019","2019-01-14","2019-03-29","2019-03-29","2019-03-29",null,null,"ST"]
["Summer Term 2019","2019-04-29","2019-06-14","2019-06-14","2019-06-14",null,null,"MT&LT"]
["Michaelmas and Lent Terms 2018/19","2018-09-27","2019-03-29","2019-03-29","2019-03-29",null,null,"LT&ST"]
["Lent and Summer Terms 2018/19","2019-01-14","2019-06-14","2019-06-14","2019-06-14",null,null,"MT&LT&ST"]
["Academic Year 2018/19","2018-09-27","2019-06-14","2018-09-29","2019-06-14",null,null,"Vacation"]
["Summer Vacation 2019","2019-06-15","2019-09-29","2019-09-29","2019-09-29"]
["Specified Dates - see below","!!! ENTER DATE HERE !!!","!!! ENTER DATE HERE !!!","!!! ENTER DATE HERE !!!"]
["Graduate Teaching Assistant","Covering staff absence"]
["Guest Teacher","Limited project where specialist expertise or skills needed"]
[]
["1 November 2018 scale","Annual salary"]
["Salary Band 5 Step 18.0",30029]
["Salary Band 5 Step 18.5",30441]
["Salary Band 5 Step 19.0",30859]
["Salary Band 5 Step 19.5",31283]
["Salary Band 5 Step 20.0",31713]
["Salary Band 5 Step 20.5",32149]
["Salary Band 5 Step 21.0",32590]
["Salary Band 5 Step 21.5",33055]
["Salary Band 5 Step 22.0",33525]
["Salary Band 5 Step 22.5",34002]
["Salary Band 5 Step 23.0",34487]
["Salary Band 5 Step 23.5*",34982]
["Salary Band 5 Step 24.0*",35483]
["Salary Band 5 Step 24.5*",35999]
["Salary Band 5 Step 25.0*",36512]
["Salary Band 5 Step 25.5*",37050]
["Salary Band 6 Step 24.5",35999]
["Salary Band 6 Step 25.0",36512]
["Salary Band 6 Step 25.5",37050]
["Salary Band 6 Step 26.0",37596]
["Salary Band 6 Step 26.5",38132]
["Salary Band 6 Step 27.0",38675]
["Salary Band 6 Step 27.5",39226]
["Salary Band 6 Step 28.0",39785]
["Salary Band 6 Step 28.5",40352]
["Salary Band 6 Step 29.0",40927]
["Salary Band 6 Step 29.5",41517]
["Salary Band 6 Step 30.0",42123]
["Salary Band 6 Step 30.5",42737]
["Salary Band 6 Step 31.0",43360]
["Salary Band 6 Step 31.5*",43992]
["Salary Band 6 Step 32.0*",44634]
["Salary Band 6 Step 32.5*",45285]
["Salary Band 6 Step 33.0*",45946]
["Salary Band 6 Step 33.5*",46617]
["Salary Band 7 Step 32.5",45285]
["Salary Band 7 Step 33.0",45946]
["Salary Band 7 Step 33.5",46617]
["Salary Band 7 Step 34.0",47297]
["Salary Band 7 Step 34.5",47988]
["Salary Band 7 Step 35.0",48689]
["Salary Band 7 Step 35.5",49400]
["Salary Band 7 Step 36.0",50122]
["Salary Band 7 Step 36.5",50855]
["Salary Band 7 Step 37.0",51598]
["Salary Band 7 Step 37.5",52353]
["Salary Band 7 Step 38.0*",52618]
["Salary Band 7 Step 38.5*",53395]
["Salary Band 7 Step 39.0*",54184]
["Salary Band 7 Step 39.5*",54984]
["Salary Band 7 Step 40.0*",55796]
["Salary Band 7 Step 40.5*",56620]
["Salary Band 7 Step 41.0*",57456]
["Salary Band 7 Step 41.5*",58305]
["Salary Band 8 Step 38.5",53395]
["Salary Band 8 Step 39.0",54184]
["Salary Band 8 Step 39.5",54984]
["Salary Band 8 Step 40.0",55796]
["Salary Band 8 Step 40.5",56620]
["Salary Band 8 Step 41.0",57456]
["Salary Band 8 Step 41.5",58305]
["Salary Band 8 Step 42.0",59166]
["Salary Band 8 Step 42.5",60040]
["Salary Band 8 Step 43.0",60926]
["Salary Band 8 Step 43.5",61826]
["Salary Band 8 Step 44.0*",62740]
["Salary Band 8 Step 44.5*",63667]
["Salary Band 8 Step 45.0*",64607]
["Salary Band 8 Step 45.5*",65562]
["Salary Band 8 Step 46.0*",66530]
["Salary Band 8 Step 46.5*",67513]
["Salary Band 8 Step 47.0*",68511]
["Salary Band 9 Step 44.0*",62740]
["Salary Band 9 Step 44.5*",63667]
["Salary Band 9 Step 45.0*",64607]
["Salary Band 9 Step 45.5*",65562]
["Salary Band 9 Step 46.0*",66530]
["Salary Band 9 Step 46.5*",67513]
["Salary Band 9 Step 47.0*",68511]
["Salary Band 9 Step 47.5*",69523]
["Salary Band 9 Step 48.0*",70551]
["Salary Band 9 Step 48.5*",71593]
["Salary Band 9 Step 49.0*",72651]
["Salary Band 9 Step 49.5*",73725]
["Salary Band 9 Step 50.0*",74814]
["Salary Band 9 Step 50.5*",75920]
["Salary Band 9 Step 51.0*",77042]
["Salary Band 9 Step 51.5*",78181]
["Salary Band 9 Step 52.0*",79336]
["Salary Band 9 Step 52.5*",80509]
["Salary Band 10 Step 48.5*",71593]
["Salary Band 10 Step 49.0*",72651]
["Salary Band 10 Step 49.5*",73725]
["Salary Band 10 Step 50.0*",74814]
["Salary Band 10 Step 50.5*",75920]
["Salary Band 10 Step 51.0*",77042]
["Salary Band 10 Step 51.5*",78181]
["Salary Band 10 Step 52.0*",79336]
["Salary Band 10 Step 52.5*",80509]
["Salary Band 10 Step 53.0*",81699]
["Salary Band 10 Step 53.5*",82907]
["Salary Band 10 Step 54.0*",84132]
["Salary Band 10 Step 54.5*",85376]
["Salary Band 10 Step 55.0*",86638]
["Salary Band 10 Step 55.5*",87919]
["Salary Band 10 Step 56.0*",89218]
["Salary Band 10 Step 56.5*",90516]
["Salary Band 10 Step 57.0*",91814]
["Salary Band 10 Step 57.5*",93113]
["Salary Band 10 Step 58.0*",94411]
["Salary Band 10 Step 58.5*",95709]
["Salary Band 10 Step 59.0*",97008]
["Salary Band 10 Step 59.5*",98306]
["Salary Band 10 Step 60.0*",99605]
["Salary Band 10 Step 60.5*",100903]
["Salary Band 10 Step 61.0*",102201]
["Salary Band 10 Step 61.5*",103500]
["Salary Band 10 Step 62.0*",104798]
["Salary Band 10 Step 62.5*",106097]
["Salary Band 10 Step 63.0*",107395]
["Salary Band 10 Step 63.5*",108693]
["Salary Band 10 Step 64.0*",109992]
["Salary Band 10 Step 64.5*",111290]
["Salary Band 10 Step 65.0*",112588]
["Salary Band 10 Step 65.5*",113887]
["Salary Band 10 Step 66.0*",115185]
["Salary Band 10 Step 66.5*",116484]
["Salary Band 10 Step 67.0*",117782]
["Salary Band 10 Step 67.5*",119080]
["Salary Band 10 Step 68.0*",120379]
["Salary Band 10 Step 68.5*",121677]
["Salary Band 10 Step 69.0*",122976]
["Salary Band 10 Step 69.5*",124274]
["Salary Band 10 Step 70.0*",125572]
["Salary Band 10 Step 70.5*",126871]
["Salary Band 10 Step 71.0*",128169]
["Salary Band 10 Step 71.5*",129466]
["Salary Band 10 Step 72.0*",130762,null,null,null,null,"Yes","UK/EEA National",null,"Undergraduate"]
["Salary Band 10 Step 72.5*",132059,null,null,null,null,"No","Tier 1",null,"1 Year Masters Student"]
["Salary Band 10 Step 73.0*",133356,null,null,null,null,null,"Tier 2",null,"2 Year Masters Student"]
["Salary Band 10 Step 73.5*",134652,null,null,null,null,null,"Tier 4 (Student)",null,"PhD Student"]
["Salary Band 10 Step 74.0*",135949,null,null,null,null,null,"Tier 4 (Doctoral Exchange Scheme)"]
["Salary Band 10 Step 74.5*",137246,null,null,null,null,null,"Tier 5"]
["Salary Band 10 Step 75.0*",138542,null,null,null,null,null,"UK Ancestry"]
["Salary Band 10 Step 75.5*",139839,null,null,null,null,null,"EEA Residence Permit"]
["Salary Band 10 Step 76.0*",141136,null,null,null,null,null,"Indefinite Leave to Remain"]
["Salary Band 10 Step 76.5*",142432,null,null,null,null,null,"Spouse/Dependent"]
["Salary Band 10 Step 77.0*",143729]
["Salary Band 10 Step 77.5*",145026]
["Salary Band 10 Step 78.0*",146322]
["Salary Band 10 Step 78.5*",147619]
["Salary Band 10 Step 79.0*",148916]
["Salary Band 10 Step 79.5*",150213]
["Salary Band 10 Step 80.0*",151509]
["Salary Band 10 Step 80.5*",152806]
["Salary Band 10 Step 21.0*",154103]
["Salary Band 10 Step 81.5*",155399]
["Salary Band 10 Step 82.0*",156696]

{"sheet":"4 Confirmation of Funding","index":3,"n_rows":46,"n_cols":2,"rows_kept":46,"cut":false,"hidden":false,"merged":[[0,0,0,1],[1,0,1,1],[2,0,2,1],[43,0,43,1],[32,0,32,1]]}
["TEACHER APPOINTMENT"]
["CONFIRMATION OF FUNDING"]
["NB You DO NOT need to complete this form if the appointment is funded from CSB."]
[]
["Contract Details:"]
["Name of Appointee:",{"$f":"IF('3 Contract Details (new system)'!B3:D3=\"\",\"\",'3 Contract Details (new system)'!B3:D3)","v":""}]
["Name of Department / Institute / Research Centre:",{"$f":"IF('3 Contract Details (new system)'!F14<>\"\",'3 Contract Details (new system)'!F14,\"\")","v":""}]
["Job Title:",{"$f":"IF('3 Contract Details (new system)'!F15<>\"\",'3 Contract Details (new system)'!F15,\"\")","v":""}]
["Teaching Start Date:",{"$f":"IF('3 Contract Details (new system)'!F19<>\"\",'3 Contract Details (new system)'!F19,\"\")","v":""}]
["Teaching End Date:",{"$f":"IF('3 Contract Details (new system)'!F20<>\"\",'3 Contract Details (new system)'!F20,\"\")","v":""}]
["Salary Band and Step:",{"$f":"IF('3 Contract Details (new system)'!F21<>\"\",'3 Contract Details (new system)'!F21,\"\")","v":""}]
["Total Payment for this Work:",{"$f":"IF('3 Contract Details (new system)'!K35<>\"\",SUM('3 Contract Details (new system)'!K35:M35),0)","v":0}]
["NB Employers' National Insurance contributions may be payable on this contract."]
["Estimated cost of Employers NI:",{"$f":"IF(B12=\"\",\"\",B12*0.143)","v":0}]
[null,{"$f":"LEFT(B11,14)","v":""}]
[{"$f":"IF(B15=\"Salary Band 5 \",\"Employers Pension contributions at 16%\", \"Employers Pension contributions at 18%\")","v":"Employers Pension contributions at 18%"},{"$f":"IF(B15=\"Salary Band 5 \",B12*0.16, B12*0.18)","v":0}]
["Estimated total cost of Appointment",{"$f":"B12+B14+B16","v":0}]
["Funding details:"]
["Name of Budget/Grant 1:"]
["APTOS Code:"]
["Percentage:"]
[]
["Name of Budget/Grant 2:"]
["APTOS Code:"]
["Percentage:"]
[]
[]
[]
[]
["Name","…………………………………………"]
[]
["Date","…………………………………………"]
[]
[]
[]
[]
[]
[]
[]
[]
[]
[]
[]
[{"$f":"'3 Contract Details (new system)'!#REF!","v":{"$error":"#REF!"}}]
["New appointment"]
["Extension of appointment"]